bitfinex-derivatives/quotes_BTCF0:USTF0_20250922
["timestamp","ask_amount","ask_price","bid_price","bid_amount"]
[1758523534625,0.00046364,112970.0,112960.0,2.61932258]
[1758523534829,0.00046364,112970.0,112960.0,1.83588258]
[1758523535030,0.00146364,112970.0,112960.0,2.73214092]
[1758523535429,0.00146364,112970.0,112960.0,2.80462537]
[1758523536833,0.0001,112980.0,112970.0,0.65139444]
[1758523537033,0.01467045,112990.0,112980.0,0.1777064]
[1758523537330,0.01457045,112990.0,112980.0,1.01218664]
[1758523538134,0.01457045,112990.0,112980.0,1.11218664]
[1758523538333,0.01757045,112990.0,112980.0,1.11218664]
[1758523538633,0.01757045,112990.0,112980.0,0.6385064]
[1758523538835,0.01757045,112990.0,112980.0,1.11218664]
[1758523539834,0.01957045,112990.0,112980.0,1.11218664]
[1758523540631,0.01957045,112990.0,112980.0,0.45006]
[1758523540933,0.32950045,112990.0,112980.0,0.45006]
[1758523541233,0.32950045,112990.0,112980.0,1.01258664]
[1758523541435,0.01957045,112990.0,112980.0,1.01258664]
[1758523541632,0.90105045,112990.0,112980.0,1.01258664]
[1758523541936,0.90025045,112990.0,112980.0,1.01258664]
[1758523542233,0.90065045,112990.0,112980.0,1.01258664]
[1758523542625,0.07910045,112990.0,112980.0,0.92414024]
[1758523542825,0.96054045,112990.0,112980.0,0.92414024]
[1758523543231,1.21054045,112990.0,112980.0,0.92414024]
[1758523543535,1.21054045,112990.0,112980.0,1.01218664]
[1758523543734,1.21054045,112990.0,112980.0,0.92414024]
[1758523543936,1.21054045,112990.0,112980.0,1.01258664]
[1758523544135,1.21054045,112990.0,112980.0,0.45046]
[1758523544535,1.21054045,112990.0,112980.0,0.92414024]
[1758523546534,0.32910045,112990.0,112980.0,1.01258664]
[1758523546935,1.20950045,112990.0,112980.0,1.01258664]
[1758523547638,0.32910045,112990.0,112980.0,1.01258664]
[1758523547838,1.20934045,112990.0,112980.0,1.01258664]
[1758523548038,0.95906045,112990.0,112980.0,1.01258664]
[1758523548239,0.89913045,112990.0,112980.0,1.01258664]
[1758523548440,0.89873045,112990.0,112980.0,1.01258664]
[1758523548739,0.89913045,112990.0,112980.0,1.01258664]
[1758523551542,0.01917045,112990.0,112980.0,1.01258664]
[1758523551743,0.89913045,112990.0,112980.0,1.01258664]
[1758523554538,0.95523045,112990.0,112980.0,0.92414024]
[1758523554937,0.95523045,112990.0,112980.0,1.01258664]
[1758523555147,0.95523045,112990.0,112980.0,0.5389064]
[1758523555346,0.95523045,112990.0,112980.0,1.01258664]
[1758523555645,0.95523045,112990.0,112980.0,0.45046]
[1758523555840,0.95523045,112990.0,112980.0,0.92414024]
[1758523556046,0.95523045,112990.0,112980.0,0.45006]
[1758523556246,0.95523045,112990.0,112980.0,0.45046]
[1758523557852,0.95523045,112990.0,112980.0,0.92414024]
[1758523558655,0.95515045,112990.0,112980.0,0.92414024]
[1758523560950,0.95515045,112990.0,112980.0,0.45046]
[1758523561154,0.07527045,112990.0,112980.0,0.92414024]
[1758523561353,0.95511045,112990.0,112980.0,0.92414024]
[1758523561547,0.07527045,112990.0,112980.0,0.92414024]
[1758523561748,0.95511045,112990.0,112980.0,0.92414024]
[1758523562051,0.07527045,112990.0,112980.0,0.92414024]
[1758523562248,0.95511045,112990.0,112980.0,0.92414024]
[1758523562450,0.95511045,112990.0,112970.0,0.03363]
[1758523562451,2.06095069,112990.0,112970.0,0.03363]
[1758523562645,0.94742,112980.0,112970.0,0.05862]
[1758523562846,0.94742,112980.0,112970.0,0.05852]
[1758523563248,1.42110024,112980.0,112970.0,0.05852]
[1758523563449,1.42110024,112980.0,112970.0,0.05892]
[1758523563757,0.54130024,112980.0,112970.0,0.05892]
[1758523564054,1.42110024,112980.0,112970.0,0.05892]
[1758523564359,0.94742,112980.0,112970.0,0.05892]
[1758523564655,1.42110024,112980.0,112970.0,0.05892]
[1758523564855,0.54130024,112980.0,112970.0,0.05892]
[1758523565155,1.42110024,112980.0,112970.0,0.05892]
[1758523565351,1.42410024,112980.0,112970.0,0.05892]
[1758523565853,0.54430024,112980.0,112970.0,0.05892]
[1758523566057,1.42406024,112980.0,112970.0,0.05892]
[1758523566250,0.55130024,112980.0,112970.0,0.05892]
[1758523566553,1.43106024,112980.0,112970.0,0.05892]
[1758523567055,0.55130024,112980.0,112970.0,0.05892]
[1758523567254,1.43106024,112980.0,112970.0,0.05892]
[1758523567754,1.43106024,112980.0,112970.0,0.0004]
[1758523567943,0.95738,112980.0,112970.0,0.0004]
[1758523568143,1.68106024,112980.0,112970.0,0.0004]
[1758523568552,2.04186024,112980.0,112970.0,0.0004]
[1758523568949,2.04186024,112980.0,112960.0,0.3609]
[1758523568950,0.02121,112970.0,112960.0,0.3609]
[1758523569148,1.43075024,112970.0,112960.0,0.3608]
[1758523569753,1.43075024,112970.0,112960.0,0.41932]
[1758523570149,1.43075024,112970.0,112960.0,0.41972]
[1758523570350,1.43275024,112970.0,112960.0,0.41972]
[1758523570555,0.08231,112970.0,112960.0,0.41972]
[1758523570858,0.94086,112970.0,112960.0,0.4538]
[1758523571356,0.94186,112970.0,112960.0,0.4538]
[1758523572358,1.41554024,112970.0,112960.0,0.4538]
[1758523572758,1.41954024,112970.0,112960.0,0.4538]
[1758523573058,0.94586,112970.0,112960.0,0.4538]
[1758523573259,1.41954024,112970.0,112960.0,0.4538]
[1758523573659,0.53978024,112970.0,112960.0,0.4538]
[1758523573954,1.41954024,112970.0,112960.0,0.4538]
[1758523574163,0.53978024,112970.0,112960.0,0.4538]
[1758523574456,1.41950024,112970.0,112960.0,0.4538]
[1758523575255,0.94582,112970.0,112960.0,0.4538]
[1758523575457,0.0661,112970.0,112960.0,0.4538]
[1758523575662,0.94582,112970.0,112960.0,0.4538]
[1758523577563,0.0661,112970.0,112960.0,0.4538]
[1758523577760,0.94582,112970.0,112960.0,0.4538]
[1758523577960,0.94578,112970.0,112960.0,0.4538]
[1758523578463,0.0661,112970.0,112960.0,0.4538]
[1758523578659,0.0661,112970.0,112960.0,1.26594224]
[1758523578958,0.0665,112970.0,112960.0,1.26594224]
[1758523579157,0.93914,112970.0,112960.0,1.26594224]
[1758523579358,0.94174,112970.0,112960.0,0.7038]
[1758523579559,0.94214,112970.0,112960.0,1.17748024]
[1758523579961,0.94214,112970.0,112960.0,1.26594224]
[1758523580162,0.94114,112970.0,112960.0,1.26594224]
[1758523582166,0.0615,112970.0,112960.0,1.26594224]
[1758523582361,0.88456,112970.0,112960.0,1.26594224]
[1758523582673,0.88496,112970.0,112960.0,1.26594224]
[1758523584569,0.0054,112970.0,112960.0,1.26594224]
[1758523584764,0.88492,112970.0,112960.0,1.26594224]
[1758523585067,0.88452,112970.0,112960.0,1.26594224]
[1758523585269,0.88492,112970.0,112960.0,1.26594224]
[1758523585869,0.88488,112970.0,112960.0,1.26594224]
[1758523586570,0.8848,112970.0,112960.0,1.26594224]
[1758523586978,0.8844,112970.0,112960.0,1.26594224]
[1758523587164,0.8848,112970.0,112960.0,1.26594224]
[1758523587670,0.0054,112970.0,112960.0,1.26594224]
[1758523587873,0.8848,112970.0,112960.0,1.26594224]
[1758523589072,0.93991,112970.0,112960.0,1.26594224]
[1758523589469,0.93691,112970.0,112960.0,1.26994224]
[1758523590070,0.93491,112970.0,112960.0,1.26694224]
[1758523590878,0.93491,112970.0,112960.0,1.26594224]
[1758523592569,0.93491,112970.0,112960.0,1.502994]
[1758523592872,0.05551,112970.0,112960.0,1.502994]
[1758523593278,0.87952,112970.0,112960.0,1.502994]
[1758523595684,0.0004,112970.0,112960.0,1.502994]
[1758523595980,0.8794,112970.0,112960.0,1.502994]
[1758523596480,0.87936,112970.0,112960.0,1.502994]
[1758523596779,0.0004,112970.0,112960.0,1.85836]
[1758523596980,0.87916,112980.0,112970.0,0.1806941]
[1758523597180,0.06988045,112990.0,112980.0,0.1806863]
[1758523597369,0.93403,112990.0,112980.0,0.8914183]
[1758523597772,0.93443,112990.0,112980.0,0.8914183]
[1758523597980,0.93443,112990.0,112980.0,0.5360523]
[1758523598171,0.93443,112990.0,112980.0,0.8914183]
[1758523598374,0.94676876,112990.0,112980.0,0.5360523]
[1758523598777,0.94876876,112990.0,112980.0,0.5360523]
[1758523598980,0.94876876,112990.0,112980.0,0.8914183]
[1758523599378,0.94676876,112990.0,112980.0,0.8914183]
[1758523599683,0.94972876,112990.0,112980.0,0.8914183]
[1758523602278,1.30509476,112990.0,112980.0,0.5360523]
[1758523602477,0.94972876,112990.0,112980.0,0.5360523]
[1758523602676,1.30509476,112990.0,112980.0,0.5360523]
[1758523602874,0.94972876,112990.0,112980.0,0.5360523]
[1758523603075,0.94972876,112990.0,112980.0,0.8914183]
[1758523603270,1.30509476,112990.0,112980.0,0.09224]
[1758523603478,1.56368476,112990.0,112970.0,0.4836308]
[1758523603677,0.410476,112980.0,112970.0,0.5361601]
[1758523603879,0.410476,112980.0,112970.0,0.5360601]
[1758523604085,0.05511,112980.0,112970.0,0.8972601]
[1758523604285,0.05511,112980.0,112970.0,0.8968601]
[1758523604582,0.05511,112980.0,112970.0,0.8972601]
[1758523605579,0.410476,112980.0,112970.0,0.5364601]
[1758523605782,1.037242,112980.0,112970.0,0.05836]
[1758523606086,0.32651,112980.0,112970.0,0.0888541]
[1758523606286,1.560396,112980.0,112970.0,0.5364601]
[1758523606477,1.560396,112980.0,112970.0,0.8968601]
[1758523606678,1.560396,112980.0,112970.0,0.8972601]
[1758523607284,0.681876,112980.0,112970.0,0.8972601]
[1758523607480,1.560316,112980.0,112970.0,0.8972601]
[1758523608085,0.30511,112980.0,112970.0,0.8972601]
[1758523608284,1.538916,112980.0,112970.0,0.5364601]
[1758523608584,0.660476,112980.0,112970.0,0.8972601]
[1758523608982,1.538876,112980.0,112970.0,0.8972601]
[1758523609184,1.538876,112980.0,112970.0,0.8973001]
[1758523610385,0.660476,112980.0,112970.0,0.8973001]
[1758523610586,1.538876,112980.0,112970.0,0.8973001]
[1758523611088,1.538876,112980.0,112970.0,0.5365001]
[1758523611387,1.560276,112980.0,112970.0,0.5022201]
[1758523611587,0.681876,112980.0,112970.0,0.5022201]
[1758523611780,1.560116,112980.0,112970.0,0.5022201]
[1758523612289,1.20475,112980.0,112970.0,0.5022201]
[1758523612484,1.560116,112980.0,112970.0,0.5022201]
[1758523612695,1.560116,112980.0,112970.0,0.1468541]
[1758523612886,1.20475,112980.0,112970.0,0.5022201]
[1758523613189,0.681876,112980.0,112970.0,0.5022201]
[1758523613389,1.560076,112980.0,112970.0,0.5022201]
[1758523613786,0.681876,112980.0,112970.0,0.5022201]
[1758523613986,1.560036,112980.0,112970.0,0.5362401]
[1758523614994,0.681876,112980.0,112970.0,0.5362401]
[1758523615185,1.559956,112980.0,112970.0,0.5362401]
[1758523615386,1.559956,112980.0,112970.0,0.1808741]
[1758523615581,1.538556,112980.0,112970.0,0.5362401]
[1758523615998,1.538556,112980.0,112970.0,0.1808741]
[1758523616293,1.538556,112980.0,112970.0,0.5362401]
[1758523616489,1.538556,112980.0,112970.0,0.1808741]
[1758523616799,1.912462,112980.0,112970.0,0.1468541]
[1758523617996,1.395182,112980.0,112970.0,0.0884941]
[1758523618202,2.273102,112980.0,112970.0,0.0888941]
[1758523618495,1.56237,112980.0,112970.0,0.1412741]
[1758523618688,1.917696,112980.0,112970.0,0.1412741]
[1758523618993,1.039816,112980.0,112970.0,0.1412741]
[1758523619189,0.68445,112980.0,112970.0,0.1752941]
[1758523619394,1.899156,112980.0,112970.0,0.1752941]
[1758523619792,1.021276,112980.0,112970.0,0.1752941]
[1758523620296,0.660476,112980.0,112970.0,0.5306601]
[1758523620692,0.30511,112980.0,112970.0,0.5306601]
[1758523620998,0.660476,112980.0,112970.0,0.5306601]
[1758523621290,1.18287,112980.0,112970.0,0.5306601]
[1758523621497,1.538196,112980.0,112970.0,0.5306601]
[1758523621892,1.538196,112980.0,112970.0,0.442206]
[1758523621893,1.18283,112980.0,112970.0,0.442206]
[1758523622098,0.660476,112980.0,112970.0,0.5306601]
[1758523622395,1.538156,112980.0,112970.0,0.5306601]
[1758523622597,1.538156,112980.0,112970.0,0.1752941]
[1758523622786,1.538156,112980.0,112970.0,0.5306601]
[1758523623494,1.538156,112980.0,112970.0,0.1752941]
[1758523624200,1.538156,112980.0,112970.0,0.08684]
[1758523624397,1.912062,112980.0,112970.0,0.00044]
[1758523624598,1.20133,112980.0,112970.0,0.1412741]
[1758523624795,1.912062,112980.0,112970.0,0.1412741]
[1758523626404,1.912062,112980.0,112970.0,0.05282]
[1758523626597,1.912062,112980.0,112970.0,0.00044]
[1758523626794,2.272862,112980.0,112970.0,0.00044]
[1758523626993,2.272862,112980.0,112970.0,0.0884941]
[1758523627195,2.272862,112980.0,112970.0,0.0888941]
[1758523627490,2.272862,112980.0,112970.0,0.0884941]
[1758523627700,2.272862,112980.0,112970.0,0.0888941]
[1758523628104,2.272862,112980.0,112970.0,0.1412741]
[1758523628702,1.56213,112980.0,112970.0,0.1412741]
[1758523628905,1.395182,112980.0,112970.0,0.1412741]
[1758523629205,2.272422,112980.0,112970.0,0.1412741]
[1758523630505,1.56169,112980.0,112970.0,0.1412741]
[1758523630706,2.272422,112980.0,112970.0,0.1412741]
[1758523631504,1.395182,112980.0,112970.0,0.1412741]
[1758523631705,2.272222,112980.0,112970.0,0.1412741]
[1758523632499,0.05511,112980.0,112970.0,1.4957861]
[1758523632800,0.06773876,112990.0,112980.0,0.1757263]
[1758523633001,0.01233876,112990.0,112980.0,1.2472583]
[1758523633208,0.87736,112990.0,112980.0,1.2472583]
[1758523633506,0.87696,112990.0,112980.0,1.2472583]
[1758523633706,0.87736,112990.0,112980.0,0.5365263]
[1758523633898,0.88987533,112990.0,112980.0,1.2472583]
[1758523634103,0.89487533,112990.0,112980.0,1.2472583]
[1758523634407,0.01791533,112990.0,112980.0,1.2472583]
[1758523634704,0.94967533,112990.0,112980.0,1.2472583]
[1758523634906,0.94967533,112990.0,112980.0,0.8918923]
[1758523635102,0.94967533,112990.0,112980.0,1.2472583]
[1758523636808,1.30504133,112990.0,112980.0,0.5365263]
[1758523637506,1.30504133,112990.0,112980.0,0.8918923]
[1758523637700,1.30504133,112990.0,112980.0,0.8922923]
[1758523638206,0.94967533,112990.0,112980.0,0.8922923]
[1758523638407,1.30504133,112990.0,112980.0,0.8922923]
[1758523639002,1.30504133,112990.0,112980.0,0.5369263]
[1758523639206,0.94967533,112990.0,112980.0,0.5369263]
[1758523639400,1.32897133,112990.0,112980.0,0.1431463]
[1758523639608,1.68977133,112990.0,112980.0,0.0888463]
[1758523640009,1.93977133,112990.0,112970.0,0.8377355]
[1758523640302,0.410166,112980.0,112970.0,0.8920355]
[1758523640509,0.410166,112980.0,112970.0,0.8919355]
[1758523641009,0.0548,112980.0,112970.0,0.8923355]
[1758523641210,0.410166,112980.0,112970.0,0.8923355]
[1758523643810,0.774122,112980.0,112970.0,0.44852]
[1758523644016,0.774122,112980.0,112970.0,0.5035941]
[1758523644214,0.774122,112980.0,112970.0,0.41554]
[1758523644515,1.134922,112980.0,112970.0,0.1427941]
[1758523644815,1.134922,112980.0,112970.0,0.0888941]
[1758523645015,2.010962,112980.0,112970.0,0.0888941]
[1758523645217,2.010962,112980.0,112970.0,0.0884941]
[1758523645413,2.010962,112980.0,112970.0,0.1421941]
[1758523645715,1.650082,112980.0,112970.0,0.1421941]
[1758523645915,2.010882,112980.0,112970.0,0.1421941]
[1758523646215,0.0548,112980.0,112970.0,0.5293601]
[1758523646416,0.93072,112980.0,112970.0,0.5347941]
[1758523646709,0.0552,112980.0,112970.0,0.8901601]
[1758523646917,0.87584,112980.0,112970.0,1.4955261]
[1758523647116,0.87624,112980.0,112970.0,1.1401601]
[1758523647913,0.0004,112980.0,112970.0,1.1401601]
[1758523648118,0.87612,112980.0,112970.0,1.4955261]
[1758523648416,0.87572,112980.0,112970.0,1.4955261]
[1758523648615,0.06453533,112990.0,112980.0,0.1735463]
[1758523648817,0.88899533,112990.0,112980.0,1.2450783]
[1758523649010,0.88819533,112990.0,112980.0,1.2450783]
[1758523649210,0.88855533,112990.0,112980.0,1.2450783]
[1758523649410,0.88815533,112990.0,112980.0,1.2450783]
[1758523649612,0.88855533,112990.0,112980.0,1.2450783]
[1758523649916,0.878,112990.0,112980.0,1.9504443]
[1758523650116,0.878,112990.0,112980.0,1.5950783]
[1758523650422,0.8806,112990.0,112980.0,1.5950783]
[1758523650620,0.881,112990.0,112980.0,1.5950783]
[1758523651420,0.89226063,112990.0,112980.0,1.5950783]
[1758523651616,0.89266063,112990.0,112980.0,1.5950783]
[1758523652012,0.01706063,112990.0,112980.0,1.5950783]
[1758523652214,0.8808,112990.0,112980.0,1.5950783]
[1758523652414,0.8804,112990.0,112980.0,1.5950783]
[1758523652610,0.005,112990.0,112980.0,1.5950783]
[1758523652814,0.88028,112990.0,112980.0,1.5950783]
[1758523653016,0.0054,112990.0,112980.0,1.5950783]
[1758523653223,0.88068,112990.0,112980.0,1.5950783]
[1758523654014,0.88068,112990.0,112980.0,1.9504443]
[1758523654625,0.88068,112990.0,112980.0,1.35789083]
[1758523659325,0.88068,112990.0,112980.0,1.10789083]
[1758523660328,0.0054,112990.0,112980.0,1.10789083]
[1758523661730,1e-07,112990.0,112980.0,1.35789083]
[1758523662631,1e-07,112990.0,112980.0,0.8843463]
[1758523666632,1e-07,112990.0,112980.0,1.7582663]
[1758523666835,1e-07,112990.0,112980.0,0.8843463]
[1758523673948,0.0529701,112990.0,112980.0,0.5343463]
[1758523674137,1e-07,112990.0,112980.0,0.5343463]
[1758523674544,1e-07,112990.0,112980.0,1.00789083]
[1758523674745,0.0529701,112990.0,112980.0,1.00789083]
[1758523675141,1e-07,112990.0,112980.0,1.00789083]
[1758523675347,1e-07,112990.0,112980.0,1.10789083]
[1758523679051,0.0529701,112990.0,112980.0,1.10789083]
[1758523679450,1e-07,112990.0,112980.0,1.10789083]
[1758523689756,1e-07,112990.0,112980.0,0.6343463]
[1758523695760,0.0008,113010.0,113000.0,0.1682605]
[1758523696063,0.0710102,113020.0,113010.0,0.1682527]
[1758523696262,0.05199,113020.0,113010.0,1.00259723]
[1758523697460,0.0636231,113020.0,113010.0,1.10259723]
[1758523697661,0.0756231,113020.0,113010.0,1.10259723]
[1758523698464,0.0816231,113020.0,113010.0,1.10259723]
[1758523699564,0.0296331,113020.0,113010.0,1.10259723]
[1758523700158,0.0300331,113020.0,113010.0,1.10259723]
[1758523700356,0.018,113020.0,113010.0,1.10259723]
[1758523700562,0.018,113020.0,113010.0,2.24317779]
[1758523701056,0.0184,113020.0,113010.0,2.24317779]
[1758523701560,0.0124,113020.0,113010.0,2.24305779]
[1758523701764,0.0164,113020.0,113010.0,1.37301779]
[1758523701963,0.0164,113020.0,113010.0,0.89947326]
[1758523702162,0.0164,113020.0,113010.0,1.37301779]
[1758523702364,0.0164,113020.0,113010.0,1.02341779]
[1758523702668,0.06839,113020.0,113010.0,1.02341779]
[1758523702868,0.06839,113020.0,113010.0,1.02301779]
[1758523703169,0.05639,113020.0,113010.0,1.02541779]
[1758523703568,0.05239,113020.0,113010.0,0.55187326]
[1758523704063,0.30239,113020.0,113010.0,0.55187326]
[1758523704272,1.17219,113020.0,113010.0,0.55187326]
[1758523704870,1.17219,113020.0,113010.0,0.55147326]
[1758523705062,1.17219,113020.0,113010.0,0.55187326]
[1758523705262,1.17319,113020.0,113010.0,0.55187326]
[1758523706471,1.17319,113020.0,113010.0,0.16131326]
[1758523706862,1.64673453,113020.0,113010.0,0.15931326]
[1758523707068,1.64773453,113020.0,113010.0,0.15931326]
[1758523707372,2.00753453,113020.0,113010.0,0.0884227]
[1758523707566,2.01453453,113020.0,113010.0,0.0888227]
[1758523708163,2.01453453,113020.0,113010.0,0.0004]
[1758523708363,2.01453453,113020.0,113010.0,0.0884227]
[1758523708570,2.01453453,113020.0,113010.0,0.0888227]
[1758523709971,2.01421453,113020.0,113010.0,0.0888227]
[1758523710158,0.67119,113020.0,113010.0,0.1410627]
[1758523710364,2.01409453,113020.0,113010.0,0.1410627]
[1758523710971,2.01409453,113020.0,113010.0,0.0888227]
[1758523711473,2.01409453,113020.0,113010.0,0.0004]
[1758523712162,1.54055,113020.0,113010.0,0.0004]
[1758523712468,2.01393453,113020.0,113010.0,0.0888227]
[1758523712972,1.54039,113020.0,113010.0,0.0888227]
[1758523713172,2.01393453,113020.0,113010.0,0.0888227]
[1758523713770,1.14473453,113020.0,113010.0,0.0888227]
[1758523713972,2.01393453,113020.0,113010.0,0.0888227]
[1758523714569,2.2507946,113020.0,113010.0,0.0888227]
[1758523714968,2.2506346,113020.0,113010.0,0.0888227]
[1758523715671,1.3815946,113020.0,113010.0,0.0888227]
[1758523715881,2.2506346,113020.0,113010.0,0.0888227]
[1758523718282,2.2506346,113020.0,113010.0,0.0004]
[1758523718472,2.2506346,113020.0,113010.0,0.0888227]
[1758523719372,2.0006346,113020.0,113010.0,0.0004]
[1758523719876,0.06891,113000.0,112990.0,0.0884382]
[1758523720080,2.0087946,113000.0,112990.0,0.0892382]
[1758523720473,0.02474,112990.0,112980.0,0.4492429]
[1758523720668,0.4292423,112990.0,112970.0,0.7487623]
[1758523720880,0.4292423,112990.0,112980.0,0.0884461]
[1758523720881,0.07404,112990.0,112980.0,0.0884461]
[1758523721079,0.94264,112990.0,112970.0,0.8364119]
[1758523721282,1.01211476,112990.0,112980.0,0.0884461]
[1758523721481,0.14351476,112990.0,112980.0,0.0884461]
[1758523721679,1.01207476,112990.0,112980.0,0.0884461]
[1758523721880,1.36727706,112990.0,112980.0,0.0884461]
[1758523722084,1.36727706,112990.0,112980.0,0.0894461]
[1758523722782,0.49871706,112990.0,112980.0,0.0894461]
[1758523723177,0.14351476,112990.0,112980.0,0.1416861]
[1758523723478,1.36919706,112990.0,112980.0,0.0894461]
[1758523724276,1.37019706,112990.0,112980.0,0.0884461]
[1758523725081,0.50171706,112990.0,112980.0,0.1406861]
[1758523725384,1.37007706,112990.0,112980.0,0.1406861]
[1758523725584,1.01483476,112990.0,112980.0,0.1406861]
[1758523725784,1.37003706,112990.0,112980.0,0.1406861]
[1758523726882,0.14651476,112990.0,112980.0,0.1406861]
[1758523727076,1.37003706,112990.0,112980.0,0.1406861]
[1758523727478,1.36991706,112990.0,112980.0,0.1406861]
[1758523729785,0.12377476,112990.0,112980.0,0.7778084]
[1758523730083,0.99189476,112990.0,112980.0,1.4938107]
[1758523730283,0.003,112990.0,112980.0,1.949013]
[1758523730480,0.871,112990.0,112980.0,1.949013]
[1758523730784,0.003,112990.0,112980.0,1.949013]
[1758523730980,0.87136,112990.0,112980.0,1.2438107]
[1758523731187,0.92066,112990.0,112980.0,0.8886084]
[1758523731386,0.91966,112990.0,112980.0,1.2448107]
[1758523731576,0.91766,112990.0,112980.0,1.2452107]
[1758523731774,0.91766,112990.0,112980.0,1.2492107]
[1758523732183,0.91766,112990.0,112980.0,1.2452107]
[1758523733790,0.91766,112990.0,112980.0,1.2442107]
[1758523733989,0.91766,112990.0,112980.0,0.8890084]
[1758523733990,1.2758623,112990.0,112980.0,0.8890084]
[1758523734292,0.92066,112990.0,112980.0,0.8890084]
[1758523734785,0.92034,112990.0,112980.0,0.8886084]
[1758523735290,0.92034,112990.0,112980.0,0.8890084]
[1758523735489,0.99007441,112990.0,112980.0,0.8890084]
[1758523736888,0.12243441,112990.0,112980.0,0.8890084]
[1758523737194,0.98987441,112990.0,112980.0,0.8890084]
[1758523737392,0.98987441,112990.0,112980.0,1.2442107]
[1758523737594,0.12243441,112990.0,112980.0,1.4942107]
[1758523737889,0.07313441,112990.0,112980.0,1.4942107]
[1758523738100,0.94049441,112990.0,112980.0,1.4942107]
[1758523738397,0.94009441,112990.0,112980.0,1.2442107]
[1758523738597,0.93949441,112990.0,112980.0,1.2442107]
[1758523738792,0.93949441,112990.0,112980.0,1.2452107]
[1758523739898,0.93749441,112990.0,112980.0,1.2452107]
[1758523740190,0.07013441,112990.0,112980.0,1.4962107]
[1758523740400,0.93745441,112990.0,112980.0,1.4952107]
[1758523740697,0.93729441,112990.0,112980.0,1.4952107]
[1758523740887,0.93729441,112990.0,112980.0,1.2452107]
[1758523741598,0.07013441,112990.0,112980.0,1.2452107]
[1758523741898,0.55809441,112990.0,112980.0,1.2452107]
[1758523742099,0.93713441,112990.0,112980.0,1.4952107]
[1758523742297,0.07013441,112990.0,112980.0,1.4952107]
[1758523742488,0.93713441,112990.0,112980.0,1.4952107]
[1758523742692,0.93709441,112990.0,112980.0,1.4952107]
[1758523743392,0.93709441,112990.0,112980.0,1.5952107]
[1758523743989,0.86736,112990.0,112980.0,1.5952107]
[1758523744193,0.8672,112990.0,112980.0,1.5952107]
[1758523746192,0.92008,112990.0,112980.0,1.2452107]
[1758523746497,1.5252823,112990.0,112980.0,0.8896084]
[1758523746699,1.5252823,112990.0,112980.0,0.1740061]
[1758523746890,1.5252823,112990.0,112980.0,0.8900084]
[1758523747595,1.17108,112990.0,112980.0,1.2452107]
[1758523747898,1.17308,112990.0,112980.0,1.2442107]
[1758523748195,0.30628,112990.0,112980.0,1.2442107]
[1758523748401,1.1728,112990.0,112980.0,1.2442107]
[1758523748997,0.37823583,112990.0,112980.0,1.2442107]
[1758523749304,1.24463583,112990.0,112980.0,1.2442107]
[1758523749601,0.12823583,112990.0,112980.0,1.2442107]
[1758523749794,0.99451583,112990.0,112980.0,1.2442107]
[1758523750803,0.99851583,112990.0,112980.0,1.2442107]
[1758523752509,0.99751583,112990.0,112980.0,1.2442107]
[1758523752806,0.99951583,112990.0,112980.0,1.2442107]
[1758523755011,0.13323583,112990.0,112980.0,1.2442107]
[1758523755212,0.99907583,112990.0,112980.0,1.2442107]
[1758523756012,0.13123583,112990.0,112980.0,1.2442107]
[1758523756312,0.98823583,112990.0,112980.0,1.2442107]
[1758523756911,0.98223583,112990.0,112980.0,1.2442107]
[1758523757113,0.98323583,112990.0,112980.0,1.2442107]
[1758523757309,0.12723583,112990.0,112980.0,1.2442107]
[1758523757615,0.99291583,112990.0,112980.0,1.2442107]
[1758523761120,0.99247583,112990.0,112980.0,1.2442107]
[1758523761920,0.12723583,112990.0,112980.0,1.2442107]
[1758523762121,0.99243583,112990.0,112980.0,1.2442107]
[1758523763025,0.99243583,112990.0,112980.0,0.5338061]
[1758523763322,0.99243583,112990.0,112980.0,1.2442107]
[1758523763523,0.93935583,112990.0,112980.0,1.5942107]
[1758523764116,0.93931583,112990.0,112980.0,1.849413]
[1758523764315,0.93923583,112990.0,112980.0,1.849413]
[1758523764517,0.93883583,112990.0,112980.0,1.4942107]
[1758523764818,0.93923583,112990.0,112980.0,1.4942107]
[1758523765117,0.0024,112990.0,112980.0,1.949413]
[1758523765318,0.37148,112990.0,112980.0,1.949413]
[1758523765622,0.0004,112990.0,112980.0,1.951413]
[1758523766010,0.0002,113000.0,112990.0,0.1686481]
[1758523766320,0.86568,113010.0,113000.0,0.1686403]
[1758523766510,0.86548,113010.0,113000.0,1.5950472]
[1758523766822,0.86548,113010.0,113000.0,1.2398449]
[1758523767022,0.76548,113010.0,113000.0,1.2398449]
[1758523767824,0.77048,113010.0,113000.0,1.2398449]
[1758523768421,0.77048,113010.0,113000.0,1.3398449]
[1758523768926,0.005,113010.0,113000.0,1.3398449]
[1758523769121,0.87156,113010.0,113000.0,1.9450472]
[1758523769523,0.87156,113010.0,113000.0,1.5898449]
[1758523769924,0.87196,113010.0,113000.0,1.5898449]
[1758523770120,0.0074,113010.0,113000.0,1.9450472]
[1758523770325,0.0024,113010.0,113000.0,2.8093672]
[1758523770626,0.0034,113010.0,113000.0,2.82089524]
[1758523770926,0.0024,113010.0,113000.0,2.82089524]
[1758523771425,0.0024,113010.0,113000.0,1.95657524]
[1758523771626,0.0024,113010.0,113000.0,2.82065524]
[1758523772124,0.0024,113010.0,113000.0,1.9450472]
[1758523772326,0.0024,113010.0,113000.0,2.8090872]
[1758523772523,0.0024,113010.0,113000.0,1.3398449]
[1758523772917,0.86636,113010.0,113000.0,1.3402449]
[1758523773221,0.91792,113010.0,113000.0,1.3402449]
[1758523773713,0.91792,113010.0,113000.0,1.2402449]
[1758523774521,0.91792,113010.0,113000.0,1.00327671]
[1758523775119,0.91792,113010.0,113000.0,0.5298406]
[1758523775320,0.91792,113010.0,113000.0,1.00327701]
[1758523775521,0.91792,113010.0,113000.0,1.00287701]
[1758523775722,0.91792,113010.0,113000.0,1.00327701]
[1758523776531,0.91792,113010.0,113000.0,0.5298406]
[1758523776719,0.91792,113010.0,113000.0,1.00327701]
[1758523777232,0.0024,113010.0,113000.0,1.00327701]
[1758523777433,0.86592,113010.0,113000.0,1.00327701]
[1758523777732,0.0024,113010.0,113000.0,1.47671342]
[1758523778326,0.0024,113010.0,113000.0,0.5298406]
[1758523778634,0.0024,113010.0,113000.0,1.47671342]
[1758523778832,0.0024,113010.0,113000.0,1.57671342]
[1758523779023,0.002,113010.0,113000.0,1.57671342]
[1758523779228,0.0024,113010.0,113000.0,1.57671342]
[1758523781933,0.0024,113010.0,113000.0,1.82671342]
[1758523782327,0.0024,113010.0,113000.0,2.68963342]